[Event "7th Sharjah Challengers 2024"]
[Site "Sharjah"]
[Date "2024.05.14"]
[Round "1.12"]
[White "Daksh Jain"]
[Black "Wang, Yanbin"]
[Result "1-0"]
[ECO "B31"]
[WhiteElo "2101"]
[BlackElo "2415"]
[Annotator "TA"]
[PlyCount "126"]
[EventDate "2024.05.13"]
[EventType "swiss"]
[EventCountry "UAE"]
[SourceTitle "playchess.com"]
[Source "ChessBase"]
[SourceQuality "1"]
[TimeControl "5400+30"]

{[%evp 20,126,14,8,0,-2,17,28,22,25,34,39,46,31,43,37,41,36,50,45,49,39,41,33,33,7,7,-18,-20,-25,-32,-34,-34,-27,-29,-41,-48,-42,-53,-42,-23,-37,-16,-25,-4,-24,-7,-7,0,-6,-8,-52,-10,-10,0,0,0,0,0,0,0,0,-3,-18,-19,-36,-16,-36,-36,-53,-1,-36,-36,-36,-36,-36,-36,-36,-36,-56,-54,-56,0,-8,0,0,0,0,0,0,0,0,0,0,0,0,0,0,0,0,0,0,0,0,0,0,0,0,0]} 1. e4 {[%emt 0:00:29]} c5 {[%emt 0:00:06]} 2. Nc3 {[%emt 0:00:09]} Nc6 {[%emt 0:00:07]} 3. Bb5 {[%emt 0:00:06]} Nd4 {[%emt 0:01:18]} 4. Nf3 {[%emt 0:00:11]} g6 {[%emt 0:01:14]} 5. Nxd4 {[%emt 0:00:36]} cxd4 {[%emt 0:00:03]} 6. Ne2 {[%emt 0:00:07]} Bg7 {[%emt 0:00:57]} 7. O-O {[%emt 0:04:02]} Nf6 {[%emt 0:05:07] B31: Sicilian: 2...Nc6 3 Bb5 g6.} 8. e5 {[%emt 0:12:11]} Ng4 {[%emt 0:02:06]} 9. Nxd4 {[%emt 0:13:59]} Nxe5 {[%emt 0:00:07]} 10. Nf3 {[%emt 0:01:12]} Qb6 $146 {[%emt 0:02:11]} ({Predecessor:} 10... Nxf3+ 11. Qxf3 O-O 12. c3 e5 13. Bc4 d6 14. d4 Be6 15. Bxe6 fxe6 16. Qxb7 exd4 {½-½ Keitlinghaus,L (2495)-Barbero,G (2500) Lazne Bohdanec 1995 (8)}) 11. Be2 {[%emt 0:03:03]} Nc6 {[%emt 0:00:41]} 12. c3 {[%emt 0:02:43]} d5 {[%emt 0:04:45]} 13. d4 {[%emt 0:02:22]} O-O {[%emt 0:00:23]} 14. Qb3 {[%emt 0:04:23]} Qxb3 {[%emt 0:03:50]} 15. axb3 {[%emt 0:00:11]} Bf5 {[%emt 0:00:36]} 16. Bf4 {[%emt 0:01:44]} h6 {[%emt 0:02:33]} 17. h3 {[%emt 0:07:15]} g5 {[%emt 0:03:18]} 18. Bg3 {[%emt 0:01:35]} Bh7 {[%emt 0:01:24]} 19. Bb5 {[%emt 0:02:46]} Rfc8 {[%emt 0:00:42]} 20. Rfe1 {[%emt 0:02:46]} e6 {[%emt 0:00:45]} 21. Ra3 {[%emt 0:06:04]} a6 {[%emt 0:03:19]} 22. Bxc6 {[%emt 0:05:20]} Rxc6 {[%emt 0:00:11]} 23. b4 {[%emt 0:07:28]} (23. Ne5 $5 Bxe5 24. Bxe5 $11) 23... f6 {[%emt 0:02:34]} 24. Ra5 {[%emt 0:02:34]} Kf7 {[%emt 0:03:18]} 25. Rc5 {[%emt 0:04:15]} Rac8 {[%emt 0:00:24]} 26. Nd2 {[%emt 0:00:48]} Bd3 {[%emt 0:00:29]} 27. Nb3 {[%emt 0:01:22]} b6 $1 {[%emt 0:00:12]} 28. Rxc6 {[%emt 0:00:46]} Rxc6 {[%emt 0:00:02]} 29. Nd2 {[%emt 0:01:44]} Bf8 {[%emt 0:00:25]} 30. Ra1 {[%emt 0:05:33]} Be7 {[%emt 0:00:11]} 31. f3 {[%emt 0:01:32]} Rc8 {[%emt 0:00:37]} 32. Kf2 {[%emt 0:00:29]} Bb5 {[%emt 0:00:39]} 33. h4 {[%emt 0:02:44]} Ke8 {[%emt 0:02:59]} 34. hxg5 {[%emt 0:00:26]} hxg5 {[%emt 0:00:03]} 35. Nb1 {[%emt 0:01:42]} Kd7 {[%emt 0:02:52]} (35... Bxb4 $5 36. cxb4 Rc2+ 37. Kg1 Rc1+ 38. Kf2 (38. Kh2 Kd7 $17) 38... e5 (38... Bd3 39. Ra3 $11) 39. dxe5 d4 $19) 36. Ke3 {[%emt 0:00:18]} Re8 {[%emt 0:02:54]} 37. Na3 {[%emt 0:00:35]} Bc6 {[%emt 0:00:16]} 38. Nc2 {[%emt 0:00:50]} Ra8 {[%emt 0:02:07]} 39. Kd2 {[%emt 0:00:47]} a5 {[%emt 0:02:49]} 40. bxa5 {[%emt 0:00:09]} bxa5 {[%emt 0:00:02]} 41. Ne1 {[%emt 0:00:26]} a4 {[%emt 0:13:04]} 42. Nd3 {[%emt 0:00:25]} Rh8 {[%emt 0:01:37]} 43. Re1 {[%emt 0:01:58]} Bb5 {[%emt 0:00:32]} 44. Ra1 {[%emt 0:01:35]} Ke8 {[%emt 0:04:06]} ({Black should play} 44... g4 $15) 45. Re1 {[%emt 0:00:26]} Kf7 {[%emt 0:00:13]} 46. Nf2 {[%emt 0:00:27]} Ra8 {[%emt 0:00:42]} 47. Ra1 {[%emt 0:00:22]} Ra6 {[%emt 0:00:59]} 48. Nd3 {[%emt 0:00:08]} Rb6 {[%emt 0:01:31]} 49. Nc5 {[%emt 0:00:58]} e5 {[%emt 0:01:07]} 50. Bf2 {[%emt 0:00:40]} Rb8 {[%emt 0:03:14]} ({Black should try} 50... Bxc5 $15 51. dxc5 Rb8) 51. Nxa4 {[%emt 0:00:33]} Bxa4 {[%emt 0:00:12]} 52. Rxa4 {[%emt 0:00:01]} Rxb2+ {[%emt 0:00:12]} 53. Ke1 {[%emt 0:00:44]} Rc2 {[%emt 0:02:05]} 54. Ra5 {[%emt 0:00:50]} Ke6 {[%emt 0:29:20]} 55. Ra6+ {[%emt 0:00:05]} Kf5 {[%emt 0:00:00]} 56. Ra5 {[%emt 0:00:08]} Rxc3 {[%emt 0:00:00]} 57. Rxd5 {[%emt 0:00:06]} Bb4 {[%emt 0:00:00]} 58. Kf1 {[%emt 0:00:36]} Rc1+ {[%emt 0:00:00]} 59. Ke2 {[%emt 0:00:06]} Rc2+ {[%emt 0:00:00]} 60. Kf1 {[%emt 0:00:01]} g4 {[%emt 0:00:00]} 61. dxe5 {[%emt 0:01:31]} gxf3 {[%emt 0:00:00]} 62. exf6+ {[%emt 0:00:37]} Ke6 {[%emt 0:00:00]} 63. Rd1 {[%emt 0:00:41]} fxg2+ {[%emt 0:00:00]} 1-0